bitfinex-derivatives/quotes_ETHF0:USTF0_20250105
["timestamp","ask_amount","ask_price","bid_price","bid_amount"]
[1736079036462,0.4362,3608.5,3608.4,0.2772]
[1736079036760,7.20423136,3608.5,3608.4,0.2772]
[1736079037163,7.20423136,3608.5,3608.4,0.7243]
[1736079037551,7.48143136,3608.5,3608.4,0.7243]
[1736079037956,7.20423136,3608.5,3608.4,0.7243]
[1736079038759,7.20423136,3608.5,3608.4,1.1724]
[1736079038956,0.4362,3608.5,3608.4,1.1724]
[1736079040059,3.2078,3608.8,3608.4,0.8952]
[1736079040262,1.2989,3609.2,3608.7,3.2078]
[1736079040461,1.2989,3609.2,3609.1,0.27715]
[1736079040763,8.53427473,3609.2,3609.1,0.27715]
[1736079041370,8.25712473,3609.2,3609.1,0.27715]
[1736079041561,8.53426473,3609.2,3609.1,0.27715]
[1736079042166,8.25712473,3609.2,3608.9,0.4302]
[1736079042358,0.27717,3608.9,3608.7,3.48498]
[1736079042554,0.27717,3608.8,3608.6,0.27719]
[1736079042762,0.4297,3608.7,3608.6,0.27719]
[1736079042963,0.70688,3608.7,3608.6,0.27719]
[1736079043165,0.4297,3608.7,3608.6,0.27719]
[1736079044161,0.70688,3608.7,3608.6,0.27719]
[1736079044558,0.4297,3608.7,3608.6,0.27719]
[1736079044762,0.70688,3608.7,3608.6,0.27719]
[1736079048860,0.4297,3608.7,3608.6,0.27719]
[1736079049266,0.70688,3608.7,3608.6,0.27719]
[1736079049862,0.27719,3608.6,3608.5,0.27719]
[1736079050066,1.12679,3608.6,3608.4,3.485]
[1736079050264,1.12679,3608.6,3608.5,0.2772]
[1736079050466,0.2772,3608.5,3608.4,3.485]
[1736079050666,0.2772,3608.5,3608.3,0.27721]
[1736079050870,0.27721,3608.4,3608.3,0.27721]
[1736079051471,6.77568554,3608.5,3608.0,3.2078]
[1736079051767,6.77568554,3608.4,3607.7,0.69156]
[1736079051972,0.27725,3607.8,3607.7,0.27726]
[1736079052674,0.27725,3607.9,3607.8,0.27725]
[1736079053775,0.854,3608.0,3607.5,3.2078]
[1736079054073,0.27727,3607.6,3607.5,3.48507]
[1736079054266,6.79816983,3607.9,3607.5,3.2078]
[1736079054467,0.27726,3607.7,3607.6,0.27726]
[1736079054667,6.79816983,3607.9,3607.5,3.2078]
[1736079054871,0.27726,3607.7,3607.6,0.27726]
[1736079055471,0.27726,3607.8,3607.7,0.27726]
[1736079055773,0.27727,3607.6,3607.5,3.48507]
[1736079055969,0.27727,3607.6,3607.5,3.2078]
[1736079057774,0.27727,3607.5,3607.4,0.00220409]
[1736079059582,7.2811469,3607.5,3607.4,0.00220409]
[1736079064181,7.0038769,3607.5,3607.4,0.00220409]
[1736079064373,7.0038769,3607.5,3607.4,0.27948409]
[1736079064580,6.7655364,3607.6,3607.5,0.27727]
[1736079064779,0.70986,3607.7,3607.5,1.12827]
[1736079064972,0.4326,3607.7,3607.5,1.27]
[1736079065172,6.84102779,3607.6,3607.5,1.54727]
[1736079066883,7.11829779,3607.6,3607.5,1.27]
[1736079067086,0.27727,3607.5,3607.4,0.00220409]
[1736079067476,7.08663317,3607.5,3607.4,0.00220409]
[1736079076177,7.08663317,3607.5,3606.8,4.0576]
[1736079076178,0.27733,3607.0,3606.8,0.4082]
[1736079076377,0.27733,3607.0,3606.9,0.4502]
[1736079077385,0.27737,3606.5,3606.4,4.34774274]
[1736079078382,0.4234,3606.6,3606.3,0.4502]
[1736079078587,0.27737,3606.4,3606.3,0.4502]
[1736079079595,0.27737,3606.3,3606.2,4.34774274]
[1736079079995,0.27738,3606.2,3606.1,0.8441]
[1736079080596,0.27738,3606.3,3606.1,0.8441]
[1736079080793,0.4234,3606.6,3606.1,0.8441]
[1736079080794,0.27738,3606.2,3606.1,0.8441]
[1736079080991,0.27738,3606.2,3606.1,0.4083]
[1736079081594,0.27736,3606.4,3606.1,0.4083]
[1736079081796,0.27736,3606.4,3606.2,0.27737]
[1736079081997,7.25439563,3606.5,3606.2,0.27737]
[1736079082208,0.27737,3606.3,3606.1,0.68568]
[1736079083093,0.27737,3606.2,3606.1,0.4083]
[1736079083291,6.97704563,3606.5,3606.1,0.4083]
[1736079083493,0.27737,3606.2,3606.1,0.4083]
[1736079083696,0.27737,3606.3,3606.1,0.68568]
[1736079084000,6.97704563,3606.5,3606.1,0.68568]
[1736079084204,0.27737,3606.3,3606.1,0.68568]
[1736079085197,6.97704563,3606.5,3606.1,0.4083]
[1736079085598,0.27737,3606.3,3606.1,0.68568]
[1736079085798,6.97704563,3606.5,3606.2,0.27737]
[1736079085999,0.27737,3606.3,3606.1,0.4083]
[1736079086197,0.27737,3606.3,3606.1,0.68568]
[1736079087095,6.97704563,3606.5,3606.1,0.4083]
[1736079087293,0.27736,3606.4,3606.2,0.27737]
[1736079087704,3.2078,3607.3,3606.2,3.2078]
[1736079088011,0.70798,3607.4,3606.7,3.2078]
[1736079088199,0.70798,3607.4,3607.2,0.27729]
[1736079088398,7.49118468,3607.4,3606.8,1.318]
[1736079088801,7.33776468,3607.4,3607.2,0.27729]
[1736079089002,7.06048468,3607.4,3606.8,1.318]
[1736079089206,7.06048468,3607.4,3607.3,0.27729]
[1736079089396,7.33776468,3607.4,3607.3,0.27729]
[1736079089906,7.06048468,3607.4,3607.3,0.27729]
[1736079090698,0.27725,3607.8,3607.6,0.27726]
[1736079091111,7.07967691,3607.8,3607.5,0.27727]
[1736079091408,0.27726,3607.7,3607.5,0.27727]
[1736079091609,0.27726,3607.6,3607.5,0.27727]
[1736079091799,7.07967691,3607.6,3607.5,0.27727]
[1736079092211,0.27726,3607.7,3607.5,0.27727]
[1736079092411,6.84155285,3607.6,3607.5,0.27727]
[1736079092812,7.11881285,3607.6,3607.5,0.27727]
[1736079093216,0.27726,3607.6,3607.5,0.27727]
[1736079093613,7.18050498,3607.6,3607.2,0.4091]
[1736079094012,7.18050498,3607.6,3607.4,0.27728]
[1736079095619,6.90324498,3607.6,3607.2,0.4091]
[1736079095821,0.27729,3607.3,3607.2,0.4091]
[1736079097518,0.69315,3607.7,3607.0,0.27731]
[1736079097912,0.27731,3607.1,3606.9,0.27731]
[1736079098216,6.83265534,3607.6,3606.9,0.27731]
[1736079098417,0.4278,3607.5,3606.8,1.3044]
[1736079098721,0.27729,3607.3,3607.0,0.27731]
[1736079098919,0.2773,3607.2,3607.0,0.27731]
[1736079099122,0.2773,3607.1,3606.9,0.27731]
[1736079099321,0.69718,3607.4,3607.2,0.27729]
[1736079099523,0.4199,3607.4,3607.3,0.69739]
[1736079100117,0.69718,3607.4,3607.3,0.4201]
[1736079100525,0.27727,3607.5,3607.3,0.4201]
[1736079100722,0.27726,3607.6,3607.3,0.4201]
[1736079101025,7.04564535,3607.5,3607.3,0.4201]
[1736079101220,0.27727,3607.5,3607.4,0.27728]
[1736079101521,0.27727,3607.5,3607.3,0.69738]
[1736079101720,0.27727,3607.5,3607.4,0.27728]
[1736079101920,0.27727,3607.5,3607.3,0.4201]
[1736079102119,0.27727,3607.5,3607.3,0.69738]
[1736079102522,0.68986,3607.7,3607.5,0.27727]
[1736079102923,6.90460987,3607.6,3607.5,0.69387]
[1736079103414,0.4102,3607.8,3607.5,0.4166]
[1736079103625,6.98943676,3607.7,3607.5,0.4166]
[1736079103825,6.98943676,3607.6,3607.5,0.69387]
[1736079104026,0.27726,3607.6,3607.5,0.4166]
[1736079104525,0.27727,3607.5,3607.4,0.27727]
[1736079104925,0.4429,3607.5,3607.3,0.4201]
[1736079105120,0.4429,3607.5,3607.3,0.69738]
[1736079105323,0.72018,3607.5,3607.3,0.69738]
[1736079105724,0.27728,3607.4,3607.3,0.69738]
[1736079105922,0.72018,3607.5,3607.3,0.69738]
[1736079106124,0.4429,3607.5,3607.4,0.27728]
[1736079106823,0.72018,3607.5,3607.3,0.4201]
[1736079107027,0.4429,3607.5,3607.4,0.27728]
[1736079107428,0.72017,3607.5,3607.3,0.4201]
[1736079107623,0.72017,3607.5,3607.4,0.27728]
[1736079107833,0.72017,3607.5,3607.3,0.69738]
[1736079108220,0.27728,3607.4,3607.3,0.69738]
[1736079109630,0.4429,3607.5,3607.3,0.69738]
[1736079109829,0.4429,3607.5,3607.4,0.27728]
[1736079109830,0.72017,3607.5,3607.4,0.27728]
[1736079110029,0.27728,3607.4,3607.3,0.69738]
[1736079110429,0.72018,3607.5,3607.3,0.69738]
[1736079111130,0.27728,3607.4,3607.3,0.69738]
[1736079112132,0.27728,3607.4,3607.3,0.4201]
[1736079113433,0.27726,3607.7,3607.5,0.27727]
[1736079113734,7.07009054,3607.7,3607.5,0.27727]
[1736079113927,7.34735054,3607.7,3607.5,0.27727]
[1736079114125,7.07009054,3607.7,3607.5,0.27727]
[1736079114321,0.27726,3607.6,3607.5,0.27727]
[1736079114729,7.15705634,3607.6,3607.5,0.27727]
[1736079116127,7.15705634,3607.6,3607.4,0.27727]
[1736079116631,6.87979634,3607.6,3607.5,0.27727]
[1736079117129,7.25364375,3607.7,3607.5,0.27727]
[1736079117330,6.97638375,3607.6,3607.5,0.27727]
[1736079117728,1.11395,3607.8,3607.6,0.27726]
[1736079118226,0.8367,3607.8,3607.6,0.27726]
[1736079118433,0.27726,3607.7,3607.5,0.27726]
[1736079118836,3.24804237,3607.9,3607.3,0.4201]
[1736079119034,0.4448,3608.0,3607.3,0.4201]
[1736079119228,0.27726,3607.7,3607.3,0.4201]
[1736079119535,0.27726,3607.7,3607.6,0.27726]
[1736079119735,0.27725,3607.8,3607.6,0.27726]
[1736079119935,0.27726,3607.7,3607.5,0.27727]
[1736079120235,6.77675783,3607.9,3607.3,0.4201]
[1736079120423,0.27727,3607.6,3607.4,0.27727]
[1736079120623,0.27726,3607.7,3607.5,0.27727]
[1736079121830,6.77675783,3607.9,3607.3,0.4201]
[1736079122027,0.27726,3607.7,3607.5,0.27727]
[1736079122430,0.27726,3607.7,3607.6,0.27726]
[1736079122630,0.27726,3607.7,3607.5,0.27727]
[1736079123432,7.19355783,3607.9,3607.3,0.4201]
[1736079123635,7.47079783,3607.9,3607.7,0.27725]
[1736079123841,7.47079783,3607.9,3607.8,0.4157]
[1736079124427,3.24804237,3608.2,3607.8,1.2424]
[1736079124633,3.24804237,3608.2,3608.1,0.27723]
[1736079125934,0.27721,3608.4,3608.1,4.34774274]
[1736079126241,0.27721,3608.4,3608.3,0.27721]
[1736079126632,0.27719,3608.6,3608.5,0.27719]
[1736079127334,0.27719,3608.6,3608.5,1.11659]
[1736079127532,0.8825,3608.9,3608.5,0.8394]
[1736079127731,0.27718,3608.8,3608.6,0.27719]
[1736079128131,0.8825,3608.9,3608.5,0.8394]
[1736079128334,3.24804237,3609.1,3608.5,0.8394]
[1736079128532,3.2078,3609.3,3608.8,3.2078]
[1736079128533,6.86534237,3609.3,3608.8,3.2078]
[1736079128732,0.27715,3609.2,3609.0,0.27715]
[1736079128938,6.86534237,3609.3,3609.2,0.27714]
[1736079129733,6.86534237,3609.3,3608.8,3.2078]
[1736079130045,0.27715,3609.1,3609.0,0.27715]
[1736079130236,0.27715,3609.2,3608.8,7.55554274]
[1736079130436,0.27715,3609.2,3609.1,0.27715]
[1736079130931,3.24804237,3609.8,3609.1,5.0]
[1736079131134,5.4245054,3610.4,3609.7,3.2078]
[1736079131330,2.41226142,3610.1,3610.0,0.27708]
[1736079131642,6.50017154,3610.9,3610.1,0.27707]
[1736079131643,2.41226142,3610.2,3610.1,0.27707]
[1736079131842,2.41226142,3610.2,3610.1,3.48487]
[1736079133336,40.8,3611.0,3610.1,7.8754274]
[1736079133537,40.8,3611.0,3610.9,3.48481]
[1736079149857,0.417,3611.1,3610.9,3.2078]
[1736079150153,0.4083,3611.4,3610.9,3.2078]
[1736079150357,0.4083,3611.4,3611.3,0.277]
[1736079150657,0.4083,3611.4,3611.3,3.4848]
[1736079150956,0.8691,3611.7,3611.6,0.27698]
[1736079151153,0.4317,3611.7,3611.6,0.27698]
[1736079153056,0.277,3611.3,3611.1,0.27701]
[1736079153264,7.33099676,3611.7,3611.1,0.27701]
[1736079153265,41.2297,3611.2,3611.1,0.27701]
[1736079153556,0.4297,3611.2,3611.1,0.27701]
[1736079154856,0.70671,3611.2,3611.1,0.27701]
[1736079155058,0.4297,3611.2,3611.1,0.27701]
[1736079159462,0.8418,3611.2,3611.1,0.27701]
[1736079167768,1.11881,3611.2,3611.0,0.27702]
[1736079167968,0.00199086,3611.1,3611.0,0.27702]
[1736079172586,0.27901086,3611.1,3611.0,0.27702]
[1736079172786,0.00199086,3611.1,3611.0,0.27702]
[1736079174680,0.00199086,3611.1,3611.0,1.13222]
[1736079175092,0.00199086,3611.1,3611.0,12.3539865]
[1736079175984,0.4274,3611.9,3611.0,12.0769665]
[1736079176179,0.70436,3611.9,3611.7,0.27697]
[1736079176481,0.70436,3611.9,3611.8,0.27696]
[1736079176482,0.4274,3611.9,3611.8,0.27696]
[1736079178187,0.4274,3611.9,3611.8,4.63099677]
[1736079178487,0.412,3612.0,3611.9,0.27695]
[1736079179483,0.412,3612.0,3611.9,4.35403677]
[1736079179987,0.412,3612.0,3611.9,4.63098677]
[1736079180383,0.412,3612.0,3611.9,4.35403677]
[1736079180589,0.412,3612.0,3611.9,0.27695]
[1736079181588,2.1526803,3612.1,3611.8,4.35403677]
[1736079181788,2.1526803,3612.1,3612.0,0.27695]
[1736079182193,0.4313,3612.3,3611.8,4.35403677]
[1736079182194,2.1526803,3612.2,3612.1,0.27694]
[1736079182389,2.1526803,3612.2,3612.1,3.48474]
[1736079183495,0.4282,3612.4,3612.1,7.56183677]
[1736079183688,0.4282,3612.4,3612.3,0.27692]
[1736079185088,2.4295903,3612.5,3612.3,0.27692]
[1736079185290,2.4295803,3612.6,3612.5,0.27691]
[1736079185586,2.1526803,3612.6,3612.5,3.48471]
[1736079186597,0.8597,3613.1,3613.0,0.27687]
[1736079186892,1.13656,3613.1,3613.0,0.27687]
[1736079187198,0.8597,3613.1,3613.0,0.27687]
[1736079187498,1.13656,3613.1,3613.0,0.27687]
[1736079187693,0.4369,3613.1,3613.0,0.27687]
[1736079188686,2.5879803,3613.5,3612.9,3.2078]
[1736079188886,2.5879803,3613.5,3613.4,0.27684]
[1736079189893,2.1526803,3613.5,3613.4,0.27684]
[1736079190294,0.431,3613.8,3613.7,0.27682]
[1736079191298,0.70781,3613.8,3613.6,0.27682]
[1736079191692,0.27684,3613.4,3613.3,3.2078]
[1736079191897,0.431,3613.8,3613.2,0.27685]
[1736079192092,0.27685,3613.3,3613.0,4.35403677]
[1736079192294,0.8561,3613.2,3613.1,0.27686]
[1736079192903,0.27686,3613.1,3612.9,3.48468]
[1736079193197,0.27687,3613.0,3612.9,3.2078]
[1736079193595,0.27687,3613.0,3612.9,3.48468]
[1736079194196,0.27687,3613.0,3612.9,3.2078]
[1736079194492,0.27691,3612.6,3612.4,0.27691]
[1736079194694,0.4425,3612.5,3612.4,0.27691]
[1736079194895,0.71941,3612.5,3612.2,3.2078]
[1736079195094,0.8562,3612.4,3612.3,0.27692]
[1736079203406,5.3604803,3613.7,3612.2,3.2078]
[1736079203602,0.27685,3613.3,3613.2,0.27685]
[1736079203803,0.4445,3613.6,3612.7,3.2078]
[1736079203804,6.77720854,3613.5,3612.7,3.2078]
[1736079204103,0.27684,3613.4,3613.2,0.27685]
[1736079204307,0.4445,3613.6,3613.2,0.27685]
[1736079204606,0.27686,3613.2,3613.1,0.27686]
[1736079204798,0.27685,3613.4,3613.2,0.27685]
[1736079205407,0.27685,3613.4,3612.7,3.2078]
[1736079205408,0.27685,3613.4,3613.3,0.27685]
[1736079205904,0.8679,3613.5,3613.4,0.27684]
[1736079207107,1.14473,3613.5,3613.4,0.27684]
[1736079208604,0.8679,3613.5,3613.4,0.27684]
[1736079212311,0.8679,3613.5,3613.1,3.2078]
[1736079212507,0.27685,3613.2,3613.1,3.2078]
[1736079212811,0.27685,3613.3,3613.1,0.27686]
[1736079213112,0.27686,3613.1,3612.6,1.08]
[1736079213412,0.27686,3613.2,3613.0,0.27687]
[1736079213612,0.27686,3613.1,3613.0,0.27687]
[1736079214811,0.8679,3613.5,3612.6,1.08]
[1736079215009,3.2078,3613.3,3612.5,3.2078]
[1736079215204,0.2769,3612.6,3612.5,3.48471]
[1736079215404,0.2769,3612.6,3612.5,3.2078]
[1736079216709,0.2769,3612.6,3612.5,3.48471]
[1736079217817,0.2769,3612.7,3612.5,3.48471]
[1736079218117,0.8698,3612.6,3612.5,3.48471]
[1736079218416,0.8698,3612.6,3612.5,0.27691]
[1736079220413,0.4234,3612.6,3612.5,0.27691]
[1736079220615,0.4503,3613.0,3612.2,0.69234]
[1736079220817,0.4503,3613.0,3612.9,0.27688]
[1736079221213,0.72717,3613.0,3612.9,0.27688]
[1736079221517,0.4503,3613.0,3612.9,0.27688]
[1736079221913,0.4503,3613.0,3612.9,3.48468]
[1736079228424,0.4503,3613.0,3612.7,4.35403677]
[1736079228616,0.27689,3612.8,3612.7,4.63092677]
[1736079228922,0.27689,3612.8,3612.7,0.27689]
[1736079232321,0.4503,3613.0,3612.5,4.34862016]
[1736079232625,0.2769,3612.6,3612.5,4.34862016]
[1736079233419,0.2769,3612.6,3612.5,4.62553016]
[1736079234829,0.2769,3612.6,3612.5,0.27691]
[1736079236126,2.1526803,3612.9,3612.4,7.55642016]
[1736079236326,0.2769,3612.6,3612.5,0.27691]
[1736079236630,0.2769,3612.7,3612.6,0.2769]
[1736079238624,2.1526803,3612.8,3612.5,4.34862016]
[1736079238820,2.1526803,3612.8,3612.5,4.62552016]
[1736079239021,0.2769,3612.6,3612.5,4.62552016]
[1736079239223,0.2769,3612.6,3612.5,4.34862016]
[1736079239932,0.2769,3612.6,3612.5,4.62553016]
[1736079240129,2.1526803,3612.8,3612.4,4.34862016]
[1736079240330,0.27691,3612.5,3612.4,4.62553016]
[1736079243429,2.1526803,3612.8,3612.4,4.34862016]
[1736079243626,0.27691,3612.6,3612.5,0.27691]
[1736079246625,0.27691,3612.5,3612.4,4.62553016]
[1736079246826,0.68831,3612.5,3612.4,4.62553016]
[1736079247136,0.68831,3612.5,3612.4,4.62554016]
[1736079247931,0.4114,3612.5,3612.4,4.62554016]
[1736079248425,1.09891,3612.5,3612.4,4.62554016]
[1736079250738,1.09891,3612.5,3612.4,0.27692]
[1736079252930,1.09891,3612.5,3612.3,4.62554016]
[1736079252931,0.27692,3612.4,3612.3,4.62554016]
[1736079254339,0.822,3612.5,3612.3,4.34862016]
[1736079254635,1.09892,3612.5,3612.4,0.27692]
[1736079259741,0.822,3612.5,3612.4,0.27692]
[1736079259937,0.4114,3612.5,3612.4,0.27692]
[1736079260241,2.8409903,3612.5,3612.4,4.62554016]
[1736079260539,2.1526803,3612.5,3612.4,4.62554016]
[1736079261038,2.1526803,3612.5,3612.4,0.27692]
[1736079261439,2.4295603,3612.9,3612.8,0.27689]
[1736079261836,2.1526803,3612.9,3612.8,0.27689]
[1736079262644,2.1526803,3612.9,3612.8,4.6312267]
[1736079264245,2.8507503,3613.0,3612.8,4.3543367]
[1736079264446,2.8507503,3613.0,3612.9,0.27688]
[1736079265550,0.4212,3613.0,3612.9,0.27688]
[1736079266046,3.24588018,3613.1,3613.0,0.27687]
[1736079266446,3.24588018,3613.1,3613.0,3.48467]
[1736079267042,0.8787,3613.2,3613.1,0.27686]
[1736079267945,2.1736256,3613.3,3613.2,0.27685]
[1736079268441,2.1736256,3613.5,3613.1,11.1941033]
[1736079268746,2.1736256,3613.5,3613.4,0.27684]
[1736079269544,1.16742,3613.7,3613.6,0.27682]
[1736079270755,3.3410456,3613.7,3613.6,0.27682]
[1736079270955,3.0642256,3613.7,3613.6,0.27682]
[1736079272362,0.8906,3613.7,3613.6,0.27682]
[1736079272758,0.445,3613.7,3613.6,0.27682]
[1736079272958,2.1736256,3613.8,3613.7,0.27682]
[1736079273864,1.14049,3614.1,3613.7,4.65903693]
[1736079274160,1.14049,3614.1,3614.0,0.27679]
[1736079274553,0.8637,3614.1,3613.7,4.65903693]
[1736079274760,0.2768,3614.0,3613.9,0.27679]
[1736079275161,0.8637,3614.1,3614.0,0.27679]
[1736079275361,1.14049,3614.1,3614.0,0.27679]
[1736079276567,2.5877256,3614.3,3614.2,0.27678]
[1736079276568,2.8644956,3614.3,3614.2,0.27678]
[1736079276860,3.0241256,3614.3,3614.2,0.27678]
[1736079277058,0.8505,3614.3,3614.2,0.27678]
[1736079277461,0.4364,3614.3,3614.2,0.27678]
[1736079280576,0.71318,3614.3,3614.1,0.27678]
[1736079281169,0.4364,3614.3,3614.2,0.27678]
[1736079283567,0.71317,3614.3,3614.2,0.27678]
[1736079283764,0.4364,3614.3,3614.2,0.27678]
[1736079292476,0.4247,3614.5,3614.4,0.27676]
[1736079292672,0.4247,3614.5,3614.4,3.48456]
[1736079293270,0.4154,3614.7,3614.4,3.2078]
[1736079293466,0.4154,3614.7,3614.6,0.27675]
[1736079294077,0.69214,3614.7,3614.6,0.27675]
[1736079294375,0.4154,3614.7,3614.6,0.27675]
[1736079294777,0.69214,3614.7,3614.6,0.27675]
[1736079295167,0.4154,3614.7,3614.0,3.2078]
[1736079295368,7.32671199,3614.7,3614.0,3.2078]
[1736079295679,0.27679,3614.1,3614.0,3.2078]
[1736079295982,0.27681,3613.8,3613.7,4.34475875]
[1736079296171,0.27681,3613.8,3613.7,4.62157875]
[1736079296576,0.27681,3613.8,3613.7,4.34475875]
[1736079296980,0.2768,3613.9,3613.8,0.27681]
[1736079297471,0.27681,3613.8,3613.7,0.27681]
[1736079297870,0.27679,3614.1,3613.6,3.2078]
[1736079298079,0.2768,3614.0,3613.6,3.2078]
[1736079298282,0.27681,3613.9,3613.8,0.2768]
[1736079299279,0.27679,3614.1,3613.9,0.27679]
[1736079299583,0.27676,3614.5,3614.4,0.27676]
[1736079299983,0.27677,3614.4,3614.3,0.27677]
[1736079300478,0.4286,3614.6,3614.0,3.6178]
[1736079300674,0.27676,3614.5,3614.4,0.27676]
[1736079301081,0.4286,3614.6,3614.0,3.6178]
[1736079301283,0.27676,3614.5,3614.2,0.27677]
[1736079301483,0.27677,3614.3,3614.0,3.6178]
[1736079301784,0.27677,3614.4,3614.3,0.27677]
[1736079302679,0.27676,3614.5,3614.4,0.27676]
[1736079303079,0.4286,3614.6,3614.0,3.6178]
[1736079303386,0.4286,3614.6,3614.5,0.27676]
[1736079303883,0.4267,3614.8,3614.4,1.07]
[1736079304088,0.4267,3614.8,3614.7,0.27674]
[1736079305986,0.4267,3614.8,3614.3,1.07]
[1736079306280,0.70344,3614.8,3614.3,5.41475875]
[1736079306481,0.4267,3614.8,3614.3,5.41475875]
[1736079306686,0.27675,3614.7,3614.5,0.27675]
[1736079306876,0.27675,3614.6,3614.3,5.41475875]
[1736079307178,0.4267,3614.8,3614.6,0.27674]
[1736079307179,0.27674,3614.7,3614.6,0.27674]
[1736079307681,0.4267,3614.8,3614.3,5.41475875]
[1736079307884,0.27676,3614.5,3614.4,0.27676]
[1736079308181,0.4267,3614.8,3614.3,1.07]
[1736079308377,0.70726,3614.4,3614.3,0.27677]
[1736079308681,0.27677,3614.3,3614.2,4.62152875]
[1736079308882,0.412,3614.3,3614.2,4.62153875]
[1736079309081,0.412,3614.3,3614.2,0.27678]
[1736079309677,0.4305,3614.4,3614.0,9.05495875]
[1736079309979,0.70726,3614.4,3614.3,0.27677]
[1736079310792,0.4305,3614.4,3614.1,4.34475875]
[1736079311084,0.27678,3614.2,3614.1,4.34475875]
[1736079311274,0.27678,3614.2,3614.1,4.62154875]
[1736079311781,0.4305,3614.4,3614.2,0.27677]
[1736079311782,0.27677,3614.3,3614.2,0.27677]
[1736079311981,0.4305,3614.4,3614.3,0.27677]
[1736079315385,0.70726,3614.4,3614.3,0.27677]
[1736079317288,2.8802755,3614.4,3614.3,0.27677]
[1736079317988,2.6035155,3614.4,3614.3,0.27677]
[1736079319484,0.4305,3614.4,3614.3,9.23487316]
[1736079320282,2.1730155,3614.5,3614.4,0.27676]
[1736079321687,5.3808155,3614.9,3614.8,0.27673]
[1736079321892,2.1730155,3614.9,3614.8,0.27673]
[1736079322897,2.1730155,3615.1,3615.0,0.27672]
[1736079324990,0.4499,3615.2,3615.0,4.35045869]
[1736079325295,0.4499,3615.2,3615.1,0.27671]
[1736079334496,0.4174,3615.4,3614.9,7.55825869]
[1736079334690,0.85,3615.4,3615.3,0.27669]
[1736079335301,0.2767,3615.3,3615.2,0.2767]
[1736079335799,0.85,3615.4,3614.9,4.35045869]
[1736079336004,0.2767,3615.2,3615.1,0.27671]
[1736079336200,6.2308155,3615.4,3614.8,4.35045869]
[1736079336502,6.5075055,3615.4,3615.3,0.27669]
[1736079337109,4.33449,3615.4,3615.3,0.27669]
[1736079339504,0.2767,3615.3,3615.2,0.2767]
[1736079341703,4.33449,3615.4,3615.3,0.27669]
[1736079341904,4.0578,3615.4,3614.8,4.35045869]
[1736079342199,0.2767,3615.3,3615.2,0.2767]
[1736079342605,4.33449,3615.4,3615.3,0.27669]
[1736079343206,3.2997055,3615.4,3615.3,0.27669]
[1736079343415,6.5075055,3615.4,3615.3,0.27669]
[1736079343602,6.2308155,3615.4,3615.3,0.27669]
[1736079343805,6.5075055,3615.4,3615.3,0.27669]
[1736079344914,3.2997055,3615.4,3615.3,0.27669]
[1736079345109,6.5075055,3615.4,3615.3,0.27669]
[1736079345311,4.33449,3615.4,3615.3,0.27669]
[1736079345504,4.0578,3615.4,3615.3,0.27669]
[1736079346308,0.85,3615.4,3615.3,0.27669]
[1736079346515,0.4326,3615.4,3615.3,0.27669]
[1736079356519,0.4244,3615.5,3615.2,5.20795869]
[1736079356720,1.11318,3615.5,3615.4,0.27669]
[1736079357018,0.8365,3615.5,3615.4,0.27669]
[1736079358313,1.11318,3615.5,3615.4,0.27669]
[1736079359015,0.8365,3615.5,3615.4,0.27669]
[1736079359514,1.11318,3615.5,3615.4,0.27669]
[1736079361820,0.8365,3615.5,3615.4,0.27669]
[1736079362121,2.1730155,3615.7,3615.6,0.27667]
[1736079363721,5.3808155,3615.8,3615.7,0.27666]
[1736079364928,3.2078,3615.8,3615.7,0.27666]
[1736079365417,3.2078,3615.8,3615.7,0.69186]
[1736079365616,3.48446,3615.8,3615.7,1.35066]
[1736079365813,3.48446,3615.8,3615.7,11.10815871]
[1736079367125,0.27667,3615.6,3615.5,6.80359006]
[1736079367919,0.27667,3615.6,3615.5,4.85935657]
[1736079368125,0.27667,3615.6,3615.5,4.58267657]
[1736079368819,0.27667,3615.6,3615.5,8.9322558]
[1736079369020,0.27667,3615.6,3615.5,4.34957923]
[1736079370023,2.1730155,3615.6,3615.4,4.62625923]
[1736079370226,0.71768,3615.5,3615.4,4.62625923]
[1736079370625,0.441,3615.5,3615.4,4.62625923]
[1736079371031,0.441,3615.5,3615.4,11.38702624]
[1736079372423,0.71768,3615.5,3615.4,11.38702624]
[1736079374431,0.71768,3615.5,3615.4,4.62569886]
[1736079376528,0.441,3615.5,3615.4,4.62569886]
[1736079376727,0.441,3615.5,3615.4,11.38644868]
[1736079377031,3.0421155,3615.7,3615.6,0.27667]
[1736079377229,2.6051155,3615.7,3615.6,0.27667]
[1736079377430,2.1730155,3615.7,3615.6,0.27667]
[1736079377829,2.1730155,3615.8,3615.7,0.27666]
[1736079378032,2.4496755,3615.8,3615.7,0.27666]
[1736079378232,2.1730155,3615.8,3615.7,0.27666]
[1736079379033,4.36505,3615.9,3615.8,0.27666]
[1736079379633,0.27666,3615.8,3615.7,4.85951862]
[1736079379936,0.27666,3615.8,3615.7,0.27666]
[1736079380836,4.36505,3615.9,3615.8,0.27666]
[1736079382227,3.33215168,3615.9,3615.8,0.27666]
[1736079383330,3.05550168,3615.9,3615.8,0.27666]
[1736079383527,2.17490168,3615.9,3615.8,0.27666]
[1736079383927,2.17490168,3615.9,3615.8,1.35066]
[1736079384337,2.17490168,3616.1,3615.8,6.0576884]
[1736079384538,2.17490168,3616.1,3616.0,0.27664]
[1736079385436,3.05080168,3616.2,3616.1,0.27663]
[1736079385932,3.32743168,3616.2,3616.1,0.27663]
[1736079388447,3.05080168,3616.2,3616.0,4.34238501]
[1736079388642,0.00257851,3616.1,3616.0,0.27663]
[1736079390145,0.00257851,3616.1,3616.0,4.61901501]
[1736079392549,0.27920851,3616.1,3616.0,4.34238501]